fUSD/lending_fUSD_20250622
["ID","MTS","AMOUNT","RATE_DAILY","PERIOD"]
[367008977,1750615833493,-2869.16834833,0.00034318,2]
[367008978,1750615833503,-11377.78,0.00034381,33]
[367008979,1750615833513,-1670.37,0.00034383,30]
[367008980,1750615833522,-1670.37,0.00034383,30]
[367008981,1750615833532,-1670.37,0.00034383,30]
[367008982,1750615833541,-1670.37,0.00034383,30]
[367008983,1750615833551,-175.24,0.00034402,2]
[367008984,1750615833562,-164.99381564,0.00034413,2]
[367008985,1750615833571,-461.36374118,0.00034417,30]
[367008986,1750615833580,-619.15037924,0.00034442,2]
[367008987,1750615833590,-168.0,0.00034613,2]
[367008988,1750615833600,-5000.0,0.00034615,2]
[367008989,1750615833609,-150.0,0.00034623,2]
[367008990,1750615833619,-164.99381564,0.00034634,2]
[367008991,1750615833629,-2074.8293,0.0003464,2]
[367008992,1750615833639,-1670.37,0.00034657,30]
[367008993,1750615833649,-1670.37,0.00034657,30]
[367008994,1750615833659,-5000.0,0.00034658,2]
[367008995,1750615833669,-2869.16834833,0.00034668,2]
[367008996,1750615833678,-1038.0,0.0003469,2]
[367008997,1750615833688,-154.28,0.000347,31]
[367008998,1750615833698,-154.28,0.000347,31]
[367008999,1750615833708,-154.28,0.000347,31]
[367009000,1750615834297,-154.28,0.000347,31]
[367009001,1750615834322,-1641.03,0.0003474,30]
[367009002,1750615834353,-461.36374118,0.00034762,31]
[367009003,1750615834370,-4850.0,0.00034839,2]
[367009004,1750615834380,-164.99381564,0.00034854,2]
[367009005,1750615834390,-168.0,0.00034885,2]
[367009006,1750615834400,-1670.37,0.00034931,30]
[367009007,1750615834410,-1670.37,0.00034931,30]
[367009008,1750615834420,-168.68331976,0.00034938,2]
[367009009,1750615834431,-150.59,0.00034938,2]
[367009010,1750615834441,-500.0,0.00034945,120]
[367009011,1750615834451,-2000.00971355,0.00035,7]
[367009012,1750615834461,-300.0,0.00035,2]
[367009013,1750615834471,-300.0,0.00035,2]
[367009014,1750615834480,-300.0,0.00035,2]
[367009015,1750615834491,-300.0,0.00035,2]
[367009016,1750615834501,-315.35804513,0.00035,2]
[367009017,1750615834510,-22859.5385495,0.00035,120]
[367009018,1750615834520,-500.0,0.00035005,7]
[367009019,1750615834530,-2869.16834833,0.00035017,2]
[367009020,1750615834539,-164.99381564,0.00035075,2]
[367009021,1750615834549,-173.0,0.000351,120]
[367009022,1750615834558,-461.36374118,0.00035107,32]
[367009023,1750615834568,-202.0,0.00035123,4]
[367009024,1750615834578,-150.0,0.00035154,2]
[367009025,1750615834587,-1670.37,0.00035205,30]
[367009026,1750615834597,-1670.37,0.00035205,30]
[367009027,1750615834606,-164.99381564,0.00035295,2]
[367009028,1750615834616,-500.0,0.00035341,60]
[367009029,1750615834626,-2869.16834833,0.00035366,2]
[367009030,1750615834636,-1165.77,0.0003539,30]
[367009031,1750615834646,-1165.36,0.0003539,30]
[367009032,1750615834656,-2422.99,0.0003539,30]
[367009033,1750615834665,-1165.77,0.0003539,30]
[367009034,1750615834674,-1165.77,0.0003539,30]
[367009035,1750615834684,-1052.09,0.0003539,30]
[367009036,1750615834694,-1165.36,0.0003539,30]
[367009037,1750615834703,-2467.88,0.0003539,30]
[367009038,1750615834713,-1165.77,0.0003539,30]
[367009039,1750615834723,-1165.77,0.0003539,30]
[367009040,1750615834733,-300.0,0.000354,12]
[367009041,1750615834742,-6114.18,0.000354,8]
[367009042,1750615834752,-923.9,0.00035423,2]
[367009043,1750615834761,-150.0,0.00035439,2]
[367009044,1750615834780,-542.51028,0.00035445,120]
[367009045,1750615834795,-2000.0,0.00035445,60]
[367009046,1750615834804,-461.36374118,0.00035452,32]
[367009047,1750615834814,-1670.37,0.00035479,30]
[367009048,1750615834823,-1670.37,0.00035479,30]
[367009049,1750615834832,-150.0,0.00035479,2]
[367009050,1750615834842,-756.35776018,0.00035496,2]
[367009051,1750615834854,-168.28428704,0.00035496,15]
[367009052,1750615834864,-248.05003482,0.00035496,2]
[367009053,1750615834873,-700.0,0.000355,12]
[367009054,1750615834883,-26491.748116,0.000355,4]
[367009055,1750615834895,-157.24630606,0.00035506,9]
[367009056,1750615834904,-188.10676127,0.00035516,2]
[367009057,1750615834913,-164.99381564,0.00035516,2]
[367009058,1750615834923,-168.0,0.00035536,2]
[367009059,1750615834934,-756.35776016,0.00035559,2]
[367009060,1750615834946,-403.0,0.00035588,120]
[367009061,1750615834955,-38853.59201768,0.00035588,30]
[367009062,1750615834965,-207.22923847,0.00035589,7]
[367009063,1750615834974,-224332.84850074,0.00035596,2]
[367009064,1750615835598,-279.74419682,0.00035596,2]
[367009065,1750615835610,-1300.187958,0.00035596,2]
[367009066,1750615835725,-1698.50466946,0.00035596,2]
[367009067,1750615835737,-412.24935498,0.00035596,2]
[367009068,1750615835747,-1034.46936732,0.00035596,2]
[367009069,1750615835763,-50157.70641428,0.00035596,2]
[367009087,1750615837571,-152.0,0.00031738,3]
[367009088,1750615837582,-152.0,0.00033454,4]
[367009089,1750615837594,-280.374,0.00034825,2]
[367009090,1750615837604,-152.0,0.0003517,5]
[367009091,1750615837614,-1275.658939,0.00035596,2]
[367009092,1750615837634,-29999.4547975,0.00035596,2]
[367009093,1750615837644,-151.29,0.00035596,2]
[367009094,1750615837654,-187.4019031,0.00035596,2]
[367009095,1750615837664,-403.0,0.00035598,120]
[367009096,1750615837675,-1000.0,0.000356,12]
[367009097,1750615837685,-72608.49912593,0.00035606,2]
[367009098,1750615837756,-44891.4354472,0.00035606,2]
[367009099,1750615837768,-551.6,0.00035606,2]
[367009100,1750615837783,-922.86362823,0.00035606,2]
[367009284,1750615839606,-1439.99999995,0.00035606,2]
[367009302,1750615839768,-6749.53786031,0.00035606,2]
[367009308,1750615839819,-53448.74588672,0.00035606,2]
[367009422,1750615842804,-320.62603076,0.00035588,30]
[367009423,1750615842863,-543.73227497,0.00035588,30]
[367009438,1750615846268,-1635.84387321,0.00035588,30]
[367009439,1750616062862,152.98,0.00013699,2]
[367009440,1750616063130,152.98,0.00024907,2]
[367009442,1750616262380,867.71430762,0.00023994,2]
[367009454,1750616708306,1195.26113372,0.00024,2]
[367009455,1750616754374,6820.08278025,0.00015,10]
[367009456,1750616754399,3905.55457265,0.00015,10]
[367009461,1750616819320,2579.9793584,0.00024,5]
[367009472,1750616852686,769.95033051,0.00023,30]
[367009476,1750616919592,151.0,0.00025,7]
[367009506,1750617031931,-300.0,0.00029898,2]
[367009507,1750617031941,-1200.0,0.00029898,2]
[367009508,1750617031950,-1587.7,0.000299,2]
[367009509,1750617031976,-6462.25663775,0.000299,2]
[367009510,1750617032034,-605.08588278,0.000299,2]
[367009511,1750617032046,-22334.48352731,0.000299,2]
[367009603,1750617037721,-281.78651295,0.000299,2]
[367009604,1750617037831,-432.41486213,0.000299,2]
[367009605,1750617037844,-19207.6054782,0.000299,2]
[367009606,1750617037854,-3177.37728976,0.000299,2]
[367009607,1750617037864,-230.51899021,0.0002999,2]
[367009608,1750617037874,-600.71351009,0.0002999,2]
[367009609,1750617037884,-530.57966109,0.00030324,7]
[367009610,1750617037893,-203.6804544,0.000309,23]
[367009611,1750617037903,-175.24,0.00030905,2]
[367009612,1750617037912,-203.68045415,0.00031208,24]
[367009613,1750617037922,-203.68045415,0.00031515,25]
[367009614,1750617037932,-500.0,0.00031584,7]
[367009615,1750617037941,-203.68045415,0.00031823,25]
[367009616,1750617037951,-203.68045415,0.00032131,26]
[367009617,1750617037960,-420.0,0.00032227,2]
[367009618,1750617037969,-1108.79179695,0.00032364,3]
[367009619,1750617037981,-571.20820305,0.00032364,3]
[367009620,1750617037991,-202.0,0.00032366,2]
[367009621,1750617038005,-203.68045415,0.00032438,26]
[367009622,1750617038015,-150.0,0.00032697,2]
[367009623,1750617038024,-203.68045415,0.00032746,27]
[367009624,1750617038033,-203.68045415,0.00033054,28]
[367009625,1750617038043,-500.0,0.00033123,2]
[367009626,1750617038052,-150.0,0.00033247,2]
[367009627,1750617038061,-203.68045415,0.00033362,28]
[367009628,1750617038071,-218.44265038,0.00033382,2]
[367009629,1750617038081,-162.84,0.00033386,120]
[367009630,1750617038090,-150.0,0.00033482,2]
[367009631,1750617038100,-154.31,0.000335,31]
[367009632,1750617038109,-164.83,0.00033535,2]
[367009633,1750617038119,-7405.39270363,0.00033564,2]
[367009634,1750617038146,-4905.40006745,0.00033564,2]
[367009635,1750617038157,-11589.20722892,0.00033564,2]
[367009636,1750617038167,-1435.9,0.00033577,30]
[367009637,1750617038181,-222.0,0.00033644,2]
[367009638,1750617038190,-200.0,0.00033665,7]
[367009639,1750617038200,-203.68045415,0.00033669,29]
[367009640,1750617038210,-150.0,0.00033673,2]
[367009641,1750617038220,-150.0,0.00033731,2]
[367009642,1750617038230,-155.2,0.00033734,2]
[367009643,1750617038239,-202.0,0.00033748,4]
[367009644,1750617038253,-154.53,0.00033753,2]
[367009645,1750617038266,-1500.0,0.00033753,2]
[367009646,1750617038276,-150.0,0.00033838,2]
[367009647,1750617038286,-258.0,0.00033968,2]
[367009648,1750617038297,-203.68045415,0.00033977,29]
[367009649,1750617038307,-620.13,0.00033981,2]
[367009650,1750617038317,-620.13,0.0003399,2]
[367009651,1750617038327,-620.13,0.00033999,2]
[367009652,1750617038337,-620.13,0.00034008,2]
[367009653,1750617038346,-620.13,0.00034017,2]
[367009654,1750617038356,-409.46610295,0.00034017,2]
[367009655,1750617038380,-3802.08198761,0.00034017,2]
[367009691,1750617039745,-10955.0,0.00034017,2]
[367009698,1750617039803,-4833.44190944,0.00034017,2]
[367009700,1750617039813,-620.13,0.00034026,2]
[367009702,1750617039823,-620.13,0.00034035,2]
[367009704,1750617039832,-620.13,0.00034043,2]
[367009706,1750617039842,-620.13,0.00034052,2]
[367009708,1750617039852,-620.13,0.00034061,2]
[367009710,1750617039862,-315.117,0.0003407,37]
[367009712,1750617039872,-620.13,0.0003407,2]
[367009714,1750617039881,-620.13,0.00034079,2]
[367009716,1750617039891,-620.13,0.00034088,2]
[367009718,1750617039900,-620.13,0.00034097,2]
[367009720,1750617039910,-620.13,0.00034106,2]
[367009722,1750617039920,-620.13,0.00034115,2]
[367009725,1750617039930,-620.13,0.00034124,2]
[367009727,1750617039939,-666.0,0.00034133,2]
[367009729,1750617039949,-620.13,0.00034133,2]
[367009731,1750617039958,-150.0,0.00034138,2]
[367009733,1750617039968,-620.13,0.00034142,2]
[367009735,1750617039978,-620.13,0.00034151,2]
[367009737,1750617039988,-1000.0,0.00034156,2]
[367009739,1750617040000,-167.02,0.00034158,2]
[367009741,1750617040010,-3543.35021643,0.00034175,2]
[367009747,1750617040052,-717.74610606,0.00034175,2]
[367009750,1750617040076,-4985.8,0.00034175,2]
[367009754,1750617040100,-4980.23642,0.00034175,2]
[367010176,1750617383198,153.28,0.00013699,2]
[367010201,1750617917602,-10000.0,0.00028,45]
[367010202,1750617917627,-10000.0,0.00029,45]
[367010203,1750617917654,-10000.0,0.0003,45]
[367010204,1750617917680,-10000.0,0.00031,45]
[367010205,1750617917714,-10000.0,0.00032,45]
[367010206,1750617917742,-10000.0,0.00033,45]
[367010207,1750617917775,-155.35,0.000335,31]
[367010208,1750617917805,-155.35,0.000335,31]
[367010209,1750617917835,-155.35,0.000335,31]
[367010210,1750617917864,-155.35,0.000335,31]
[367010211,1750617917890,-10000.0,0.00034,45]
[367010212,1750617917916,-252.094,0.00034162,38]
[367010213,1750617917943,-159.41,0.00034162,120]
[367010214,1750617917975,-203.68045415,0.00034233,30]
[367010215,1750617918001,-206.92,0.00034366,120]
[367010216,1750617918033,-203.68045415,0.00034567,31]
[367010217,1750617918063,-155.35,0.000347,31]
[367010218,1750617918093,-155.35,0.000347,31]
[367010219,1750617918123,-155.35,0.000347,31]
[367010220,1750617918152,-155.35,0.000347,31]
[367010221,1750617918182,-155.35,0.000347,31]
[367010222,1750617918212,-155.35,0.000347,31]
[367010223,1750617918240,-155.35,0.000347,31]
[367010224,1750617918268,-155.35,0.000347,31]
[367010225,1750617918294,-9999.999999,0.000349,120]
[367010226,1750617918318,-1184.80339299,0.000349,120]
[367010227,1750617918350,-203.68045415,0.000349,31]
[367010228,1750617918378,-8195.67773786,0.00035,120]
[367010229,1750617918403,-342.61801824,0.00035,120]
[367010230,1750617918428,-1128.74060789,0.00035,60]
[367010231,1750617918462,-268.9678181,0.00035,120]
[367010232,1750617918490,-10000.0,0.00035,50]
[367010233,1750617918525,-203.68045415,0.00035233,32]
[367010234,1750617918554,-500.0,0.00035341,60]
[367010235,1750617918586,-1087.58432945,0.00035495,30]
[367010236,1750617918613,-715.25238,0.000355,120]
[367010237,1750617918639,-781.19071892,0.000355,120]
[367010238,1750617918674,-203.68045415,0.00035567,33]
[367010239,1750617918701,-363.0,0.00035586,120]
[367010240,1750617918728,-12402.32628102,0.00035588,30]
[367010241,1750617918755,-363.0,0.00035596,120]
[367010242,1750617918787,-363.0,0.00035606,120]
[367010243,1750617918930,-1670.37,0.00035753,30]
[367010244,1750617918955,-1670.37,0.00035753,30]
[367010245,1750617918985,-150.5,0.0003586,120]
[367010246,1750617919010,-150.5,0.0003587,120]
[367010247,1750617919036,-192.08,0.0003588,120]
[367010248,1750617919060,-150.5,0.0003588,120]
[367010249,1750617919086,-1068.50722,0.00035888,30]
[367010250,1750617919111,-549.29957859,0.00035889,30]
[367010251,1750617919563,-155.35,0.000359,31]
[367010252,1750617919598,-155.35,0.000359,31]
[367010253,1750617919629,-155.35,0.000359,31]
[367010254,1750617919661,-155.35,0.000359,31]
[367010255,1750617919691,-155.35,0.000359,31]
[367010256,1750617919723,-155.35,0.000359,31]
[367010257,1750617919756,-155.35,0.000359,31]
[367010258,1750617919785,-155.35,0.000359,31]
[367010259,1750617919817,-203.68045415,0.000359,33]
[367010260,1750617919844,-1670.37,0.00036027,30]
[367010261,1750617919869,-1670.37,0.00036027,30]
[367010262,1750617919896,-1068.50722,0.00036088,30]
[367010263,1750617919997,-203.68045415,0.00036233,34]
[367010264,1750617920023,-1068.50722,0.00036288,30]
[367010265,1750617920048,-1670.37,0.00036301,30]
[367010266,1750617920074,-1670.37,0.00036301,30]
[367010267,1750617920100,-363.0,0.000364,120]
[367010268,1750617920125,-363.0,0.0003641,120]
[367010269,1750617920150,-363.0,0.0003642,120]
[367010270,1750617920175,-500.0,0.00036437,60]
[367010271,1750617920199,-1300.0,0.00036437,60]
[367010272,1750617920225,-500.0,0.00036437,60]
[367010273,1750617920311,-1068.50722,0.00036488,30]
[367010274,1750617920336,-207.0,0.0003655,30]
[367010275,1750617920361,-1670.37,0.00036575,30]
[367010276,1750617920385,-1670.37,0.00036575,30]
[367010277,1750617920410,-1068.50722,0.00036688,30]
[367010278,1750617920493,-172.8951572,0.00036795,30]
[367010279,1750617920519,-1670.37,0.00036849,30]
[367010280,1750617920543,-1670.37,0.00036849,30]
[367010281,1750617920570,-15708.23170819,0.0003688,120]
[367010282,1750617920595,-232.33,0.00036886,30]
[367010283,1750617920620,-185.93,0.00036886,30]
[367010284,1750617920646,-1068.50722,0.00036888,30]
[367010285,1750617920678,-203.68045415,0.000369,35]
[367010286,1750617920703,-284.07,0.0003695,120]
[367010287,1750617920729,-172.8951572,0.00036959,30]
[367010288,1750617920754,-150.5,0.0003696,120]
[367010289,1750617920778,-150.5,0.0003697,120]
[367010290,1750617920803,-500.0,0.00036985,60]
[367010292,1750617920828,-1300.0,0.00036985,60]
[367010293,1750617920909,-194.355288,0.00036986,120]
[367010294,1750617920935,-600.0,0.00037,30]
[367010295,1750617920960,-157.0,0.00037,30]
[367010296,1750617920987,-4622.0,0.00037,117]
[367010297,1750617921010,-25266.0,0.00037,120]
[367010298,1750617921034,-1068.50722,0.00037088,30]
[367010299,1750617921058,-172.8951572,0.00037096,30]
[367010300,1750617921085,-155.35,0.000371,31]
[367010301,1750617921113,-155.35,0.000371,31]
[367010302,1750617921141,-155.35,0.000371,31]
[367010303,1750617921166,-155.35,0.000371,31]
[367010304,1750617921191,-155.35,0.000371,31]
[367010305,1750617921218,-155.35,0.000371,31]
[367010306,1750617921247,-155.35,0.000371,31]
[367010307,1750617921276,-155.35,0.000371,31]
[367010308,1750617921302,-1670.37,0.00037123,30]
[367010309,1750617921327,-1670.37,0.00037123,30]
[367010310,1750617921353,-1484.58572987,0.000372,120]
[367010311,1750617921379,-1484.58572986,0.000372,120]
[367010312,1750617921405,-1484.58572986,0.000372,120]
[367010313,1750617921436,-1484.58572986,0.000372,120]
[367010314,1750617921462,-1484.58572986,0.000372,120]
[367010315,1750617921491,-500.0,0.00037213,120]
[367010316,1750617921519,-2000.0,0.00037213,60]
[367010317,1750617921543,-222.653925,0.00037213,120]
[367010318,1750617921569,-500.0,0.00037213,120]
[367010319,1750617921595,-172.8951572,0.00037233,30]
[367010320,1750617921628,-203.68045415,0.00037233,36]
[367010321,1750617921707,-1068.50722,0.00037288,30]
[367010322,1750617921735,-172.8951572,0.00037397,30]
[367010323,1750617921762,-164.913508,0.00037476,60]
[367010324,1750617921787,-363.0,0.0003748,120]
[367010325,1750617921813,-1068.50722,0.00037488,30]
[367010326,1750617921838,-363.0,0.0003749,120]
[367010327,1750617921873,-1300.0,0.00037533,60]
[367010328,1750617921900,-500.0,0.00037533,60]
[367010329,1750617921926,-153.0,0.00037533,60]
[367010330,1750617922001,-180.0,0.00037534,60]
[367010331,1750617922028,-180.0,0.00037534,60]
[367010332,1750617922055,-180.0,0.00037534,60]
[367010333,1750617922081,-180.0,0.00037534,60]
[367010334,1750617922107,-180.0,0.00037534,60]
[367010335,1750617922132,-180.0,0.00037534,60]
[367010336,1750617922158,-180.0,0.00037534,60]
[367010337,1750617922184,-180.0,0.00037534,60]
[367010338,1750617922209,-180.0,0.00037534,60]
[367010339,1750617922236,-180.0,0.00037534,60]
[367010340,1750617922261,-180.0,0.00037534,60]
[367010341,1750617922526,-180.0,0.00037534,60]
[367010342,1750617922556,-180.0,0.00037534,60]
[367010343,1750617922582,-180.0,0.00037534,60]
[367010344,1750617922608,-172.8951572,0.00037534,30]
[367010345,1750617922633,-180.0,0.00037537,60]
[367010346,1750617922659,-180.0,0.00037537,60]
[367010347,1750617922684,-180.0,0.00037537,60]
[367010348,1750617922710,-180.0,0.00037537,60]
[367010349,1750617922736,-180.0,0.00037537,60]
[367010350,1750617922762,-180.0,0.00037537,60]
[367010351,1750617922788,-180.0,0.00037537,60]
[367010352,1750617922813,-180.0,0.00037537,60]
[367010353,1750617922838,-180.0,0.00037537,60]
[367010354,1750617922863,-180.0,0.00037537,60]
[367010355,1750617922887,-180.0,0.00037537,60]
[367010356,1750617922913,-180.0,0.00037537,60]
[367010357,1750617922938,-180.0,0.00037537,60]
[367010358,1750617922971,-203.68045415,0.00037567,37]
[367010359,1750617922996,-164.913508,0.00037626,30]
[367010360,1750617923022,-1068.50722,0.00037688,30]
[367010361,1750617923047,-172.8951572,0.00037699,30]
[367010362,1750617923071,-207.0,0.0003776,30]
[367010363,1750617923141,-172.8951572,0.00037836,30]
[367010364,1750617923166,-1068.50722,0.00037888,30]
[367010365,1750617923197,-203.68045415,0.000379,37]
[367010366,1750617923225,-172.8951572,0.00037973,30]
[367010367,1750617923249,-513.0,0.00037996,120]
[367010368,1750617923277,-484.17918541,0.00038,30]
[367010369,1750617923303,-375.98420768,0.00038,120]
[367010370,1750617923328,-2783.08292853,0.00038,30]
[367010371,1750617923352,-50053.44472471,0.00038,60]
[367010372,1750617923377,-369.11,0.0003808,120]
[367010373,1750617923403,-1300.0,0.00038081,60]
[367010374,1750617923431,-500.0,0.00038081,60]
[367010375,1750617923498,-1068.50722,0.00038088,30]
[367010376,1750617923525,-363.0,0.0003809,120]
[367010377,1750617923551,-172.8951572,0.00038137,30]
[367010378,1750617923583,-203.68045415,0.00038233,38]
[367010379,1750617923610,-100000.0,0.0003827,30]
[367010380,1750617923635,-172.8951572,0.00038274,30]
[367010381,1750617923661,-1068.50722,0.00038288,30]
[367010382,1750617923685,-115630.73,0.0003829,31]
[367010383,1750617923714,-155.35,0.000383,31]
[367010384,1750617923746,-155.35,0.000383,31]
[367010385,1750617923776,-155.35,0.000383,31]
[367010386,1750617923806,-155.35,0.000383,31]
[367010387,1750617923835,-155.35,0.000383,31]
[367010388,1750617923859,-165.7,0.000383,38]
[367010389,1750617923885,-1000.0,0.00038356,120]
[367010390,1750617923910,-1000.0,0.00038356,120]
[367010391,1750617923934,-1000.0,0.00038356,120]
[367010392,1750617923958,-1131.83583934,0.00038356,120]
[367010393,1750617924024,-498.04477503,0.000384,120]
[367010394,1750617924053,-159.41,0.00038433,120]
[367010395,1750617924081,-150.0,0.00038434,120]
[367010396,1750617924107,-172.8951572,0.00038438,30]
[367010397,1750617924132,-1068.50722,0.00038488,30]
[367010398,1750617924157,-499999.0,0.000385,120]
[367010399,1750617924182,-499999.0,0.000385,120]
[367010400,1750617924208,-499999.0,0.000385,120]
[367010401,1750617924234,-499999.0,0.000385,120]
[367010402,1750617924259,-499999.0,0.000385,120]
[367010403,1750617924283,-499999.0,0.000385,120]
[367010404,1750617924309,-499999.0,0.000385,120]
[367010405,1750617924334,-499999.0,0.000385,120]
[367010406,1750617924359,-486705.68847454,0.000385,120]
[367010407,1750617929807,-223.77461303,0.00034614,31]
[367010408,1750617929843,-223.77461303,0.00035329,32]
[367010409,1750617930088,-223.77461303,0.00036043,34]
[367010410,1750617930311,-223.77461303,0.00036757,35]
[367010411,1750617930457,-223.77461303,0.00037471,36]
[367010412,1750617930636,-223.77461303,0.00038186,38]
[367010413,1750617930705,-13293.31152546,0.000385,120]
[367010414,1750617930732,-499999.0,0.000385,120]
[367010415,1750617930758,-499999.0,0.000385,120]
[367010416,1750617930783,-499999.0,0.000385,120]
[367010417,1750617930808,-499999.0,0.000385,120]
[367010418,1750617930835,-151235.63913816,0.000385,120]
[367010419,1750617930861,-1300.0,0.00038629,60]
[367010420,1750617930886,-500.0,0.00038629,60]
[367010421,1750617930948,-1068.50722,0.00038688,30]
[367010422,1750617930974,-255.63687675,0.0003873,120]
[367010423,1750617931000,-150.0,0.00038736,120]
[367010424,1750617931027,-1678.98,0.000388,60]
[367010425,1750617931051,-1573.83719853,0.000389,120]
[367010426,1750617931113,-150.0,0.00038933,120]
[367010427,1750617931139,-207.0,0.0003896,30]
[367010428,1750617931164,-373.03807603,0.00039,120]
[367010429,1750617931188,-1748.31118078,0.00039,120]
[367010430,1750617931221,-1143.70649877,0.00039,120]
[367010431,1750617931250,-227.65313084,0.00039,120]
[367010432,1750617931276,-7311.0,0.00039,120]
[367010433,1750617931302,-1092.0,0.00039,30]
[367010434,1750617931329,-1068.50722,0.00039088,30]
[367010435,1750617931357,-150.0,0.00039103,120]
[367010436,1750617931383,-3233.16703203,0.0003913,60]
[367010437,1750617931412,-150.0,0.00039151,120]
[367010438,1750617931442,-500.0,0.00039177,60]
[367010439,1750617931513,-1068.50722,0.00039288,30]
[367010440,1750617931542,-150.0,0.00039307,120]
[367010441,1750617931608,-1068.50722,0.00039488,30]
[367010442,1750617931636,-1068.50722,0.00039688,30]
[367010443,1750617931663,-1300.0,0.00039725,60]
[367010444,1750617931694,-500.0,0.00039725,60]
[367010445,1750617931770,-5084.2,0.00039739,117]
[367010446,1750617931797,-419.33067736,0.0003975,30]
[367010447,1750617931824,-1000000.0,0.000398,120]
[367010448,1750617931853,-150.0,0.00039804,120]
[367010449,1750617931880,-1068.50722,0.00039888,30]
[367010450,1750617931906,-1842.11477804,0.000399,120]
[367010451,1750617931933,-10000.0,0.000399,120]
[367010452,1750617931960,-1786531.38288907,0.0003998,30]
[367010453,1750617947637,-223.77461303,0.000389,39]
[367010454,1750617947808,-261439.70849168,0.0003998,30]
[367010455,1750617947834,-360.78786889,0.00039998,30]
[367010456,1750617947859,-410.63450813,0.00039999,31]
[367010457,1750617947885,-500.0,0.00039999,31]
[367010458,1750617947912,-355.81527108,0.00039999,31]
[367010459,1750617947937,-500.0,0.00039999,31]
[367010460,1750617947964,-500.0,0.00039999,31]
[367010461,1750617947992,-489.55694957,0.00039999,31]
[367010462,1750617948020,-500.0,0.00039999,31]
[367010463,1750617948048,-500.0,0.00039999,31]
[367010464,1750617948075,-500.0,0.00039999,31]
[367010465,1750617948102,-500.0,0.00039999,31]
[367010466,1750617948128,-500.0,0.00039999,31]
[367010467,1750617948155,-500.0,0.00039999,31]
[367010468,1750617948194,-500.0,0.00039999,31]
[367010469,1750617948222,-500.0,0.00039999,31]
[367010470,1750617948249,-500.0,0.00039999,31]
[367010471,1750617948279,-500.0,0.00039999,31]
[367010472,1750617948308,-500.0,0.00039999,31]
[367010473,1750617948335,-500.0,0.00039999,31]
[367010474,1750617948363,-500.0,0.00039999,31]
[367010475,1750617948389,-500.0,0.00039999,31]
[367010476,1750617948416,-500.0,0.00039999,31]
[367010477,1750617948443,-500.0,0.00039999,31]
[367010478,1750617948472,-500.0,0.00039999,31]
[367010479,1750617948501,-500.0,0.00039999,31]
[367010480,1750617948531,-500.0,0.00039999,31]
[367010481,1750617948560,-500.0,0.00039999,31]
[367010482,1750617948587,-617.07050424,0.00039999,31]
[367010483,1750617948615,-500.0,0.00039999,31]
[367010484,1750617948643,-500.0,0.00039999,31]
[367010485,1750617948672,-500.0,0.00039999,31]
[367010486,1750617948699,-500.0,0.00039999,31]
[367010487,1750617948727,-500.0,0.00039999,31]
[367010488,1750617948755,-500.0,0.00039999,31]
[367010489,1750617948784,-500.0,0.00039999,31]
[367010490,1750617948811,-298.55996176,0.00039999,31]
[367010491,1750617948837,-500.0,0.00039999,31]
[367010492,1750617948863,-500.0,0.00039999,31]
[367010493,1750617948891,-500.0,0.00039999,31]